fUSD/lending_fUSD_20260311
["ID","MTS","AMOUNT","RATE_DAILY","PERIOD"]
[408218656,1773253832173,-1004.88354371,0.00019799,2]
[408218657,1773253832182,-8650.2342,0.000198,2]
[408218658,1773253832191,-300.0,0.000198,7]
[408218659,1773253832201,-302.60461492,0.0001981,2]
[408218660,1773253832210,-1092.664,0.0001981,2]
[408218661,1773253832219,-500.0,0.00019833,2]
[408218662,1773253832228,-500.0,0.00019887,2]
[408218663,1773253832238,-542.59073283,0.00019899,2]
[408218664,1773253832247,-539.40708043,0.00019899,2]
[408218665,1773253832257,-288.22116111,0.00019899,2]
[408218666,1773253832267,-539.40708038,0.00019899,2]
[408218667,1773253832276,-288.22116111,0.00019899,2]
[408218668,1773253832286,-539.40708038,0.00019899,2]
[408218669,1773253832296,-539.40708038,0.00019899,2]
[408218670,1773253832306,-539.40708038,0.00019899,2]
[408218671,1773253832317,-539.40708038,0.000199,2]
[408218672,1773253832326,-539.40708038,0.000199,2]
[408218673,1773253832336,-539.40708038,0.000199,2]
[408218674,1773253832345,-539.40708038,0.000199,2]
[408218675,1773253832355,-844.17477306,0.000199,6]
[408218676,1773253832364,-1964.57868576,0.000199,6]
[408218677,1773253832374,-2168.20340741,0.000199,6]
[408218678,1773253832383,-2041.57728656,0.000199,6]
[408218679,1773253832395,-997.59457193,0.000199,6]
[408218680,1773253832421,-1374.23355722,0.000199,6]
[408218681,1773253832440,-344.17628322,0.000199,2]
[408218682,1773253832455,-488.37487202,0.000199,6]
[408218683,1773253832464,-1065.98523755,0.000199,6]
[408218684,1773253832473,-1170.06153476,0.000199,6]
[408218685,1773253832482,-1181.72258876,0.000199,6]
[408218686,1773253832493,-7899.9905,0.000199,2]
[408218687,1773253832514,-1000.0,0.000199,2]
[408218688,1773253832527,-300.0,0.000199,7]
[408218689,1773253832537,-504.98137836,0.000199,6]
[408218690,1773253832546,-539.40708038,0.000199,2]
[408218691,1773253832555,-2000.0,0.000199,2]
[408218692,1773253832565,-2194.38105596,0.000199,2]
[408218693,1773253832575,-500.0,0.00019942,2]
[408218694,1773253832584,-500.0,0.00019973,2]
[408218695,1773253832593,-500.0,0.00019973,2]
[408218696,1773253832602,-500.0,0.00019973,2]
[408218697,1773253832611,-500.0,0.00019973,2]
[408218698,1773253832621,-500.0,0.00019973,2]
[408218699,1773253832631,-500.0,0.00019997,2]
[408218700,1773253832641,-151.0,0.00019997,2]
[408218701,1773253832650,-500.0,0.00019997,2]
[408218702,1773253832659,-501.2232109,0.00019997,2]
[408218703,1773253832668,-500.0,0.00019997,2]
[408218704,1773253832677,-221.16696833,0.00019997,2]
[408218705,1773253832687,-156.21003878,0.00019997,2]
[408218706,1773253832696,-500.0,0.00019997,2]
[408218707,1773253832706,-213.82177962,0.00019997,2]
[408218708,1773253832716,-500.0,0.00019997,2]
[408218709,1773253832725,-500.0,0.00019997,2]
[408218710,1773253832734,-500.0,0.00019997,2]
[408218711,1773253832744,-500.0,0.00019997,2]
[408218712,1773253832754,-500.0,0.00019997,2]
[408218713,1773253832763,-500.0,0.00019997,2]
[408218714,1773253832771,-318.21575015,0.00019997,2]
[408218715,1773253832784,-500.0,0.00019997,2]
[408218716,1773253832793,-500.0,0.00019997,2]
[408218717,1773253832802,-500.0,0.00019997,2]
[408218718,1773253832812,-176.90731977,0.00019997,2]
[408218719,1773253832822,-500.0,0.00019997,2]
[408218720,1773253832831,-500.0,0.00019997,2]
[408218721,1773253832840,-500.0,0.00019997,2]
[408218722,1773253832849,-500.0,0.00019997,2]
[408218723,1773253832858,-500.0,0.00019997,2]
[408218724,1773253832868,-500.0,0.00019997,2]
[408218725,1773253832877,-500.0,0.00019997,2]
[408218726,1773253832886,-500.0,0.00019997,2]
[408218727,1773253832896,-500.0,0.00019997,2]
[408218728,1773253832905,-500.0,0.00019997,2]
[408218729,1773253832915,-500.0,0.00019997,2]
[408218730,1773253832923,-500.0,0.00019997,2]
[408218731,1773253832933,-500.0,0.00019997,2]
[408218732,1773253832942,-500.0,0.00019997,2]
[408218733,1773253832952,-500.0,0.00019997,2]
[408218734,1773253832961,-500.0,0.00019997,2]
[408218735,1773253832971,-500.0,0.00019997,2]
[408218736,1773253832980,-597.50157205,0.00019997,2]
[408218737,1773253832990,-500.0,0.00019997,2]
[408218738,1773253832999,-500.0,0.00019997,2]
[408218739,1773253833008,-500.0,0.00019997,2]
[408218740,1773253833017,-500.0,0.00019997,2]
[408218741,1773253833027,-500.0,0.00019997,2]
[408218742,1773253833036,-500.0,0.00019997,2]
[408218743,1773253833045,-500.0,0.00019997,2]
[408218744,1773253833055,-500.0,0.00019997,2]
[408218745,1773253833064,-500.0,0.00019997,2]
[408218746,1773253833074,-500.0,0.00019997,2]
[408218747,1773253833084,-500.0,0.00019997,2]
[408218748,1773253833093,-259.75015721,0.00019997,2]
[408218749,1773253833102,-500.0,0.00019997,2]
[408218750,1773253833112,-500.0,0.00019997,2]
[408218751,1773253833122,-500.0,0.00019997,2]
[408218752,1773253833131,-500.0,0.00019997,2]
[408218753,1773253833140,-500.0,0.00019997,2]
[408218754,1773253833150,-2659.234,0.00019998,2]
[408218755,1773253833160,-28074.1338404,0.00019998,2]
[408218756,1773253833169,-11536.7517999,0.00019998,2]
[408218757,1773253833178,-113434.19102217,0.00019998,2]
[408218758,1773253833190,-28180.93747626,0.00019998,2]
[408218759,1773253833201,-7652.86257313,0.00019998,2]
[408218760,1773253833248,-2364.61060515,0.00019998,2]
[408218772,1773253837971,-150.0,0.00019899,2]
[408218773,1773253837984,-288.22116111,0.00019899,2]
[408218774,1773253837995,-288.22116111,0.00019899,2]
[408218775,1773253838006,-17139.84698592,0.000199,2]
[408218776,1773253838016,-32818.71069186,0.00019998,2]
[408218777,1773253838079,-252.9731701,0.00019998,2]
[408218778,1773253838092,-1260.0,0.00019998,2]
[408218779,1773253838110,-956.485885,0.00019998,2]
[408218975,1773253840305,-513.22946044,0.000199,2]
[408218977,1773253840315,-108541.61599243,0.00019998,2]
[408218979,1773253840325,-300.0,0.00019999,2]
[408218981,1773253840336,-300.0,0.00019999,2]
[408218983,1773253840345,-500.0,0.00019999,2]
[408218985,1773253840355,-500.0,0.00019999,2]
[408218987,1773253840365,-500.0,0.00019999,2]
[408218989,1773253840375,-500.0,0.00019999,2]
[408218991,1773253840384,-500.0,0.00019999,2]
[408218993,1773253840394,-500.0,0.00019999,2]
[408218995,1773253840403,-500.0,0.00019999,2]
[408218997,1773253840413,-175.92,0.00019999,2]
[408218999,1773253840423,-509.98368022,0.00019999,2]
[408219001,1773253840436,-500.0,0.00019999,2]
[408219003,1773253840446,-500.0,0.00019999,2]
[408219006,1773253840456,-502.83202664,0.00019999,2]
[408219008,1773253840467,-514.81342724,0.00019999,2]
[408219010,1773253840477,-471.96107139,0.00019999,2]
[408219012,1773253840487,-621495.80375316,0.0002,2]
[408219014,1773253840501,-6849.59165372,0.0002,2]
[408219023,1773253840568,-2316.21,0.0002,2]
[408219030,1773253840623,-343.024,0.0002,2]
[408219463,1773253846167,-171.5226936,0.00019899,2]
[408219464,1773253846178,-288.22116111,0.00019899,2]
[408219465,1773253846188,-500.0,0.00019997,2]
[408219466,1773253846198,-191.39028097,0.00019999,2]
[408219467,1773253846209,-12834.7349516,0.0002,2]
[408219474,1773255032161,-510.0,0.00017,2]
[408219475,1773255032170,-2438.45060631,0.00017397,2]
[408219476,1773255032179,-177.3193716,0.00017794,2]
[408219477,1773255032189,-964.47669461,0.00017894,2]
[408219478,1773255032199,-2633.6964663,0.00017894,2]
[408219479,1773255032209,-166.66,0.00018163,2]
[408219480,1773255032218,-1200.0,0.00018543,2]
[408219481,1773255032227,-166.66,0.00018545,2]
[408219483,1773255032237,-326.38,0.00018547,2]
[408219485,1773255032245,-228.48,0.00018561,2]
[408219487,1773255032255,-300.0,0.00018582,2]
[408219489,1773255032263,-200.0,0.00018583,2]
[408219491,1773255032272,-600.0,0.000187,2]
[408219493,1773255032281,-2500.0,0.000187,2]
[408219494,1773255032291,-1898.44,0.0001878,2]
[408219495,1773255032299,-1500.0,0.00018782,2]
[408219496,1773255032308,-500.0,0.000189,2]
[408219497,1773255032318,-9564.11,0.000189,2]
[408219498,1773255032328,-200.0,0.000189,2]
[408219499,1773255032337,-166.66,0.00018928,2]
[408219500,1773255032346,-500.0,0.00018932,2]
[408219501,1773255032355,-2068.45819861,0.00018986,2]
[408219502,1773255032364,-354.32700199,0.00019001,2]
[408219503,1773255032374,-210.0,0.00019087,2]
[408219504,1773255032383,-3796.50150551,0.00019179,2]
[408219505,1773255032392,-113582.7398,0.00019181,2]
[408219506,1773255032401,-1503.0,0.00019253,2]
[408219507,1773255032411,-320.0,0.00019268,2]
[408219508,1773255032419,-200.0,0.00019269,2]
[408219509,1773255032428,-500.0,0.00019269,2]
[408219510,1773255032437,-500.0,0.00019269,2]
[408219511,1773255032446,-500.0,0.00019269,2]
[408219512,1773255032455,-500.0,0.00019269,2]
[408219513,1773255032464,-151.0,0.00019269,2]
[408219514,1773255032474,-5221.64830408,0.00019307,2]
[408219515,1773255032483,-166.66,0.0001931,2]
[408219516,1773255032492,-600.0,0.000194,7]
[408219517,1773255032501,-210.0,0.00019403,2]
[408219518,1773255032510,-166.66,0.00019467,2]
[408219519,1773255032519,-1773.70228703,0.000195,2]
[408219520,1773255032535,-226.29771297,0.000195,2]
[408219521,1773255032544,-1300.0,0.000195,7]
[408219522,1773255032553,-2890.68631247,0.00019512,2]
[408219523,1773255032562,-1000.0,0.00019527,2]
[408219524,1773255032571,-177.31937159,0.00019593,2]
[408219525,1773255032580,-2000.0,0.000196,7]
[408219526,1773255032589,-210.0,0.00019613,2]
[408219527,1773255032598,-6020.26192164,0.00019664,2]
[408219528,1773255032608,-166.66,0.00019693,2]
[408219529,1773255032617,-4136.9726,0.00019698,2]
[408219530,1773255032626,-1249.78495478,0.000197,2]
[408219531,1773255032823,-2600.0,0.000197,7]
[408219532,1773255032833,-1249.78495478,0.00019722,2]
[408219533,1773255032843,-500.0,0.00019723,2]
[408219534,1773255032857,-454.7,0.00019723,2]
[408219535,1773255032866,-500.0,0.00019723,2]
[408219536,1773255032876,-500.0,0.00019723,2]
[408219537,1773255032886,-150.0,0.00019723,2]
[408219538,1773255032896,-150.0,0.00019723,2]
[408219539,1773255032908,-150.0,0.00019723,2]
[408219540,1773255032920,-500.0,0.00019723,2]
[408219541,1773255032934,-150.0,0.00019723,2]
[408219542,1773255032950,-150.0,0.00019723,2]
[408219543,1773255032959,-500.0,0.00019723,2]
[408219544,1773255032968,-150.0,0.00019723,2]
[408219545,1773255032978,-500.0,0.00019723,2]
[408219546,1773255032987,-150.0,0.00019723,2]
[408219547,1773255032996,-150.0,0.00019723,2]
[408219548,1773255033005,-500.0,0.00019723,2]
[408219549,1773255033014,-150.0,0.00019723,2]
[408219550,1773255033023,-150.0,0.00019723,2]
[408219551,1773255033032,-150.0,0.00019723,2]
[408219552,1773255033041,-150.0,0.00019723,2]
[408219553,1773255033050,-150.0,0.00019723,2]
[408219554,1773255033059,-500.0,0.00019723,2]
[408219555,1773255033068,-150.0,0.00019723,2]
[408219556,1773255033077,-200.0,0.00019723,2]
[408219557,1773255033086,-150.0,0.00019723,2]
[408219558,1773255033096,-150.0,0.00019723,2]
[408219559,1773255033106,-150.0,0.00019723,2]
[408219560,1773255033115,-150.0,0.00019723,2]
[408219561,1773255033125,-150.0,0.00019723,2]
[408219562,1773255033134,-150.0,0.00019723,2]
[408219563,1773255033143,-4000.0,0.00019723,2]
[408219564,1773255033152,-1945.31421399,0.00019723,2]
[408219565,1773255033161,-1249.78495478,0.00019744,2]
[408219566,1773255033171,-899.04228778,0.00019767,2]
[408219567,1773255033183,-350.742667,0.00019767,2]
[408219568,1773255033193,-500.0,0.00019778,2]
[408219569,1773255033202,-500.0,0.00019778,2]
[408219570,1773255033211,-500.0,0.00019778,2]
[408219571,1773255033221,-160.57620522,0.00019778,2]
[408219572,1773255033231,-150.0,0.00019778,2]
[408219573,1773255033241,-150.0,0.00019778,2]
[408219574,1773255033253,-500.0,0.00019778,2]
[408219575,1773255033263,-253.29632904,0.00019778,2]
[408219576,1773255033273,-150.0,0.00019778,2]
[408219577,1773255033283,-500.0,0.00019778,2]
[408219578,1773255033292,-150.0,0.00019778,2]
[408219579,1773255033301,-550.0,0.00019778,2]
[408219580,1773255033310,-150.0,0.00019778,2]
[408219581,1773255033319,-186.99459924,0.00019778,2]
[408219582,1773255033328,-500.0,0.00019778,2]
[408219583,1773255033337,-150.0,0.00019778,2]
[408219584,1773255033347,-150.0,0.00019778,2]
[408219585,1773255033356,-150.0,0.00019778,2]
[408219586,1773255033365,-550.0,0.00019778,2]
[408219587,1773255033375,-220.02326955,0.00019778,2]
[408219588,1773255033384,-150.0,0.00019778,2]
[408219589,1773255033393,-150.0,0.00019778,2]
[408219590,1773255033402,-150.0,0.00019778,2]
[408219591,1773255033412,-150.0,0.00019778,2]
[408219592,1773255033422,-150.0,0.00019778,2]
[408219593,1773255033431,-1249.78495478,0.00019789,2]
[408219594,1773255033440,-54931.6289,0.00019798,2]
[408219595,1773255033450,-26059.6787,0.000198,2]
[408219596,1773255033459,-3300.0,0.000198,7]
[408219597,1773255033468,-2500.0,0.000198,2]
[408219598,1773255033477,-1999.0,0.00019801,2]
[408219599,1773255033487,-1249.78495478,0.00019811,2]
[408219600,1773255033497,-539.0,0.00019833,2]
[408219601,1773255033506,-500.0,0.00019833,2]
[408219602,1773255033515,-500.0,0.00019833,2]
[408219603,1773255033525,-200.0,0.00019833,2]
[408219604,1773255033534,-250.0,0.00019833,2]
[408219605,1773255033544,-500.0,0.00019833,2]
[408219606,1773255033553,-500.0,0.00019833,2]
[408219607,1773255033562,-150.0,0.00019833,2]
[408219608,1773255033571,-150.0,0.00019833,2]
[408219609,1773255033580,-150.0,0.00019833,2]
[408219610,1773255033590,-150.0,0.00019833,2]
[408219611,1773255033599,-150.0,0.00019833,2]
[408219612,1773255033609,-150.0,0.00019833,2]
[408219613,1773255033619,-150.0,0.00019833,2]
[408219614,1773255033632,-150.79,0.00019833,2]
[408219615,1773255033642,-1249.78495478,0.00019833,2]
[408219616,1773255033651,-210.0,0.0001985,2]
[408219617,1773255033661,-1249.78495478,0.00019856,2]
[408219618,1773255033671,-1249.78495478,0.00019878,2]
[408219619,1773255033682,-154.17330698,0.00019887,2]
[408219620,1773255033695,-345.82669302,0.00019887,2]
[408219621,1773255033704,-150.0,0.00019887,2]
[408219622,1773255033714,-150.0,0.00019887,2]
[408219623,1773255033724,-150.0,0.00019887,2]
[408219624,1773255033733,-150.0,0.00019887,2]
[408219625,1773255033742,-150.0,0.00019887,2]
[408219626,1773255033751,-150.0,0.00019887,2]
[408219627,1773255033761,-4870.5413,0.00019897,2]
[408219628,1773255033771,-6454.58930613,0.00019897,2]
[408219629,1773255033780,-166.38892693,0.00019897,2]
[408219630,1773255033790,-6454.58930607,0.00019897,2]
[408219631,1773255033799,-4495.45985537,0.00019898,2]
[408219632,1773255033811,-334.07982699,0.00019898,2]
[408219633,1773255033826,-1625.04962371,0.00019898,2]
[408219634,1773255033835,-1020.94629692,0.00019898,2]
[408219635,1773255033847,-4526.83668561,0.00019898,2]
[408219636,1773255033862,-605.6100191,0.00019898,2]
[408219637,1773255033874,-301.19630444,0.00019898,2]
[408219638,1773255033884,-504.27412704,0.00019898,2]
[408219639,1773255033897,-1132.53506354,0.00019898,2]
[408219647,1773255038187,-7644.87980942,0.00019898,2]
[408219648,1773255038197,-1000.0,0.00019898,2]
[408219649,1773255038208,-1437.39473871,0.00019898,2]
[408219650,1773255038221,-5017.19456736,0.00019898,2]
[408219651,1773255038231,-6454.58930607,0.00019899,2]
[408219652,1773255038241,-228.53146757,0.00019899,2]
[408219653,1773255038253,-6226.0578385,0.00019899,2]
[408219654,1773255038262,-5780.24173988,0.00019899,2]
[408219655,1773255038274,-674.34756619,0.00019899,2]
[408219656,1773255038285,-6454.58930607,0.000199,2]
[408219657,1773255038294,-5314.1355,0.000199,2]
[408219658,1773255038304,-655.44500854,0.000199,2]
[408219659,1773255038313,-600.0,0.000199,7]
[408219660,1773255038322,-1249.78495478,0.000199,2]
[408219661,1773255038332,-6454.58930607,0.000199,2]
[408219662,1773255038343,-1701.06742304,0.000199,2]
[408219663,1773255038353,-217.94309222,0.000199,2]
[408219664,1773255038362,-1474.00347989,0.000199,2]
[408219665,1773255038373,-705.69050812,0.000199,2]
[408219666,1773255038382,-327.0,0.00019942,2]
[408219667,1773255038391,-150.0,0.00019942,2]
[408219668,1773255038401,-150.0,0.00019942,2]
[408219669,1773255038410,-150.0,0.00019942,2]
[408219670,1773255038421,-150.0,0.00019942,2]
[408219671,1773255038431,-150.0,0.00019942,2]
[408219672,1773255038440,-150.0,0.00019942,2]
[408219673,1773255038451,-500.0,0.00019973,2]
[408219675,1773255038461,-500.0,0.00019973,2]
[408219677,1773255038470,-504.09482637,0.00019973,2]
[408219679,1773255038479,-500.0,0.00019996,2]
[408219681,1773255038490,-500.0,0.00019996,2]
[408219683,1773255038499,-500.0,0.00019996,2]
[408219685,1773255038508,-414.5512077,0.00019996,2]
[408219688,1773255038517,-250.0,0.00019997,2]
[408219691,1773255038526,-250.0,0.00019997,2]
[408219694,1773255038535,-250.0,0.00019997,2]
[408219696,1773255038544,-250.0,0.00019997,2]
[408219698,1773255038553,-250.0,0.00019997,2]
[408219700,1773255038562,-250.0,0.00019997,2]
[408219702,1773255038572,-500.0,0.00019997,2]
[408219704,1773255038581,-151.0,0.00019997,2]
[408219706,1773255038590,-3054.9357388,0.00019997,2]
[408219708,1773255038599,-500.0,0.00019997,2]
[408219710,1773255038608,-500.0,0.00019997,2]
[408219712,1773255038617,-3693.18086164,0.00019997,2]
[408219714,1773255038629,-638.55537377,0.00019997,2]
[408219716,1773255038640,-303.75651952,0.00019997,2]
[408219719,1773255038652,-1542.02172142,0.00019997,2]
[408219721,1773255038662,-10134.39340091,0.00019997,2]
[408219723,1773255038673,-3572.87009396,0.00019997,2]
[408219725,1773255038684,-4000.0,0.00019997,2]
[408219727,1773255038695,-2320.58896356,0.00019997,2]
[408219729,1773255038707,-2350.84782846,0.00019997,2]
[408219732,1773255038722,-56713.75688996,0.00019997,2]
[408219734,1773255038732,-500.0,0.00019997,2]
[408219736,1773255038741,-500.0,0.00019997,2]
[408219738,1773255038751,-500.0,0.00019997,2]
[408219740,1773255038761,-506.77106008,0.00019997,2]
[408219742,1773255038771,-500.0,0.00019997,2]
[408219744,1773255038780,-500.0,0.00019997,2]
[408219746,1773255038789,-500.0,0.00019997,2]
[408219748,1773255038799,-500.0,0.00019997,2]
[408219750,1773255038809,-500.0,0.00019997,2]
[408219752,1773255038820,-500.0,0.00019997,2]
[408219754,1773255038831,-454.7,0.00019997,2]
[408219756,1773255038841,-333.80551454,0.00019997,2]
[408219758,1773255038850,-61530.41331893,0.00019997,2]
[408219760,1773255038863,-14561.18862311,0.00019997,2]
[408219762,1773255038874,-564.0886184,0.00019997,2]
[408219764,1773255038891,-3307.40658349,0.00019997,2]
[408219765,1773255038902,-2083.52456331,0.00019997,2]
[408219766,1773255040230,-20820.22181606,0.00019997,2]
[408219767,1773255040239,-531.3103933,0.00019997,2]
[408219768,1773255040248,-500.0,0.00019997,2]
[408219769,1773255040258,-500.0,0.00019997,2]
[408219770,1773255040267,-502.83202664,0.00019997,2]
[408219771,1773255040276,-500.0,0.00019997,2]
[408219772,1773255040284,-2216.4858852,0.00019997,2]
[408219773,1773255040294,-300.0,0.00019999,2]
[408219774,1773255040303,-300.0,0.00019999,2]
[408219775,1773255040312,-397.97236465,0.00019999,2]
[408219776,1773255040321,-500.0,0.00019999,2]
[408219777,1773255040330,-500.0,0.00019999,2]
[408219778,1773255040339,-500.0,0.00019999,2]
[408219779,1773255040348,-501.54386851,0.00019999,2]
[408219780,1773255040357,-500.0,0.00019999,2]
[408219781,1773255040366,-500.0,0.00019999,2]
[408219782,1773255040376,-500.0,0.00019999,2]
[408219783,1773255040386,-500.0,0.00019999,2]
[408219784,1773255040395,-500.0,0.00019999,2]
[408219785,1773255040404,-500.0,0.00019999,2]
[408219786,1773255040414,-500.0,0.00019999,2]
[408219787,1773255040423,-509.98368022,0.00019999,2]
[408219788,1773255040432,-500.0,0.00019999,2]
[408219789,1773255040441,-500.0,0.00019999,2]
[408219790,1773255040451,-514.81342724,0.00019999,2]
[408219791,1773255040460,-500.0,0.00019999,2]
[408219792,1773255040469,-477.23483141,0.00019999,2]
[408219793,1773255040478,-500.0,0.00019999,2]
[408219794,1773255040491,-500.0,0.00019999,2]
[408219795,1773255040500,-500.0,0.00019999,2]
[408219796,1773255040509,-500.0,0.00019999,2]
[408219797,1773255040518,-500.0,0.00019999,2]
[408219798,1773255040527,-500.0,0.00019999,2]
[408219799,1773255040536,-178.83865876,0.00019999,2]
[408219800,1773255040546,-500.0,0.00019999,2]
[408219801,1773255040556,-583.16714028,0.00019999,2]
[408219802,1773255040565,-500.0,0.00019999,2]
[408219803,1773255040574,-500.0,0.00019999,2]
[408219804,1773255040583,-353.01403454,0.00019999,2]
[408219805,1773255040592,-401.85044226,0.00019999,2]
[408219806,1773255040601,-696736.89084245,0.0002,2]
[408219807,1773255040613,-767.0,0.0002,2]
[408219808,1773255040623,-1173353.22837921,0.0002,2]
[408219809,1773255040633,-25720.01810064,0.0002,2]
[408219810,1773255040642,-2943742.49862764,0.0002,2]
[408219811,1773255040654,-4420.99119729,0.0002,2]
[408219812,1773255040665,-1834.13983938,0.0002,2]
[408219831,1773255045209,-17045.59,0.0002,2]
[408219833,1773255045221,-6273.41018136,0.0002,2]
[408219839,1773255045315,-127.84032762,0.0002,2]
[408219841,1773255046316,-2920.93974657,0.0002,2]
[408219842,1773255046327,-500.0,0.0002,2]
[408219846,1773255596002,8344.81073898,0.0001199,2]
[408219847,1773255596023,10000.0,0.0001199,2]
[408219848,1773255596042,10000.0,0.0001199,2]
[408219849,1773255596067,5000.01,0.0001199,2]
[408219850,1773255596094,5359.05137063,0.0001199,2]
[408219851,1773255603466,5000.01,8e-05,2]
[408219852,1773255603495,12317.35711781,8e-05,2]
[408219918,1773255869883,196.22,9.271e-05,2]
[408219919,1773255939091,-356.60272819,0.00014453,2]
[408219920,1773256031571,4803.79,0.00014033,7]
[408219921,1773256031602,19.21,0.00014033,7]
[408219930,1773256232277,-460.51348595,0.000156,2]
[408219931,1773256232289,-831.64957871,0.000156,2]
[408219932,1773256232300,-491.38023017,0.000156,2]
[408219933,1773256232311,-501.52740981,0.000156,2]
[408219934,1773256232328,-2000.0,0.000156,2]
[408219935,1773256232340,-484.55790331,0.000156,2]
[408219936,1773256232351,-723.749995,0.000156,2]
[408219937,1773256232362,-2255.84924183,0.000156,2]
[408219938,1773256232372,-866.46,0.000156,2]
[408219939,1773256232390,-83659.31215522,0.000156,2]
[408219940,1773256232399,-1200.0,0.00015899,2]
[408219941,1773256232409,-551.42856636,0.00016,2]
[408219942,1773256232418,-419.06949887,0.00016147,2]
[408219943,1773256232427,-319.8729,0.00016147,2]
[408219944,1773256232437,-500.0,0.00016173,2]
[408219946,1773256232446,-500.0,0.00016173,2]
[408219947,1773256232456,-500.0,0.00016173,2]
[408219948,1773256232467,-550.0,0.00016199,2]
[408219949,1773256232476,-1509.92,0.00016247,2]
[408219950,1773256232485,-5533.0,0.000163,3]
[408219951,1773256232495,-500.0,0.00016721,2]
[408219952,1773256232504,-500.0,0.00016721,2]
[408219953,1773256232513,-5533.0,0.000169,5]
[408219954,1773256232523,-1839.96205237,0.00017,2]
[408219955,1773256232534,-15836.70346721,0.00017,2]
[408219956,1773256232545,-25940.7274867,0.00017,2]
[408219957,1773256232555,-510.0,0.00017,2]
[408219959,1773256232565,-4668.66208207,0.000171,2]
[408219960,1773256232576,-3645.33303195,0.000171,2]
[408219962,1773256232585,-935.0,0.00017317,2]
[408219963,1773256232594,-1680.0,0.00017472,2]
[408219964,1773256232605,-500.53878535,0.00017573,2]
[408219965,1773256232615,-500.58140027,0.00017573,2]
[408219966,1773256232624,-500.39228547,0.00017573,2]
[408219967,1773256232634,-213.84986559,0.000176,2]
[408219968,1773256232643,-195.0,0.000176,2]
[408219969,1773256232652,-195.0,0.000176,2]
[408219970,1773256232661,-195.0,0.000176,2]
[408219971,1773256232671,-1832.17,0.00017714,2]
[408219972,1773256232680,-314.96,0.00017802,2]
[408219973,1773256232689,-338.46702542,0.000179,2]
[408219974,1773256232699,-338.46702539,0.000179,2]
[408219975,1773256232709,-3914.43,0.00018254,2]
[408219976,1773256232718,-338.46702539,0.00018299,2]
[408219977,1773256232728,-278.0,0.00018393,2]
[408219978,1773256232738,-500.0,0.00018489,2]
[408219979,1773256232748,-151.0,0.00018489,2]
[408219980,1773256232757,-151.0,0.00018489,2]
[408219981,1773256232766,-151.0,0.00018489,2]
[408219982,1773256232775,-151.0,0.00018489,2]
[408219983,1773256232785,-151.0,0.00018489,2]
[408219984,1773256232794,-151.0,0.00018489,2]
[408219985,1773256232803,-151.0,0.00018489,2]
[408219986,1773256232813,-151.0,0.00018489,2]
[408219987,1773256232822,-151.0,0.00018489,2]
[408219988,1773256232831,-151.0,0.00018489,2]
[408219989,1773256232840,-151.0,0.00018489,2]
[408219990,1773256232850,-151.0,0.00018489,2]
[408219991,1773256232859,-151.0,0.00018489,2]
[408219992,1773256232869,-151.0,0.00018489,2]
[408219993,1773256232879,-151.0,0.00018489,2]
[408219994,1773256232888,-151.0,0.00018489,2]
[408219995,1773256232898,-151.0,0.00018489,2]
[408219996,1773256232907,-151.0,0.00018489,2]
[408219997,1773256232917,-151.0,0.00018489,2]
[408219998,1773256232926,-151.0,0.00018489,2]